fUSD/lending_fUSD_20250823
["ID","MTS","AMOUNT","RATE_DAILY","PERIOD"]
[380935000,1755909040366,-151.0,0.000132,2]
[380935001,1755909040375,-224.462135,0.000132,2]
[380935002,1755909040385,-151.0,0.000132,2]
[380935003,1755909040395,-267.405332,0.000132,2]
[380935004,1755909040405,-267.405332,0.000132,2]
[380935005,1755909040415,-614.6238188,0.00013213,2]
[380935006,1755909040425,-459.69,0.0001328,2]
[380935007,1755909040435,-1780.11382389,0.00013298,2]
[380935008,1755909040444,-4730.15108397,0.00013298,2]
[380935009,1755909040455,-1139.24,0.00013311,2]
[380935010,1755909040464,-332.08,0.00013378,2]
[380935011,1755909040473,-1250.0,0.00013399,2]
[380935012,1755909040483,-150.7924,0.000134,2]
[380935013,1755909040493,-1250.0,0.000134,2]
[380935014,1755909040502,-880.68629776,0.00013453,2]
[380935015,1755909040513,-913.57586686,0.00013461,2]
[380935016,1755909040522,-5391.81600769,0.00013492,2]
[380935017,1755909040532,-277.35679052,0.00013492,2]
[380935018,1755909040542,-152.89,0.000135,2]
[380935019,1755909040551,-423.3,0.000135,2]
[380935021,1755909040561,-427.72,0.000135,2]
[380935022,1755909040570,-150.96,0.000135,2]
[380935023,1755909040580,-302.28,0.000135,2]
[380935024,1755909040589,-428.64,0.000135,2]
[380935025,1755909040599,-421.48,0.000135,2]
[380935026,1755909040608,-423.46,0.000135,2]
[380935027,1755909040618,-304.95,0.000135,2]
[380935028,1755909040627,-421.11,0.000135,2]
[380935029,1755909040636,-425.77,0.000135,2]
[380935030,1755909040645,-303.81,0.000135,2]
[380935031,1755909040655,-429.05,0.000135,2]
[380935032,1755909040664,-431.53,0.000135,2]
[380935034,1755909040674,-419.54,0.000135,2]
[380935035,1755909040683,-302.07,0.000135,2]
[380935036,1755909040693,-430.16,0.000135,2]
[380935038,1755909040703,-425.06,0.000135,2]
[380935039,1755909040712,-302.97,0.000135,2]
[380935040,1755909040722,-424.16,0.000135,2]
[380935041,1755909040731,-429.6,0.000135,2]
[380935042,1755909040741,-416.62,0.000135,2]
[380935043,1755909040750,-301.29,0.000135,2]
[380935044,1755909040760,-422.42,0.000135,2]
[380935045,1755909040770,-417.5,0.000135,2]
[380935046,1755909040779,-305.38,0.000135,2]
[380935047,1755909040788,-428.17,0.000135,2]
[380935048,1755909040797,-430.33,0.000135,2]
[380935049,1755909040807,-433.37,0.000135,2]
[380935050,1755909040816,-304.91,0.000135,2]
[380935051,1755909040826,-422.51,0.000135,2]
[380935052,1755909040836,-422.19,0.000135,2]
[380935053,1755909040845,-302.79,0.000135,2]
[380935054,1755909040854,-420.68,0.000135,2]
[380935055,1755909040864,-426.56,0.000135,2]
[380935056,1755909040875,-421.38,0.000135,2]
[380935057,1755909040885,-305.28,0.000135,2]
[380935058,1755909040895,-301.94,0.000135,2]
[380935059,1755909040905,-305.81,0.000135,2]
[380935060,1755909040914,-423.39,0.000135,2]
[380935061,1755909040924,-416.92,0.000135,2]
[380935062,1755909040933,-305.66,0.000135,2]
[380935063,1755909040943,-421.02,0.000135,2]
[380935064,1755909040954,-468.98,0.000135,2]
[380935065,1755909040964,-1598.16,0.000135,2]
[380935066,1755909040973,-303.69,0.00013512,2]
[380935067,1755909040983,-423.15,0.00013527,2]
[380935068,1755909040992,-304.2,0.0001353,2]
[380935069,1755909041002,-5800.0,0.00013537,2]
[380935070,1755909041011,-5591.31319997,0.00013547,2]
[380935071,1755909041021,-432.77,0.00013568,2]
[380935072,1755909041031,-425.41,0.00013568,2]
[380935073,1755909041040,-423.09,0.00013568,2]
[380935074,1755909041050,-431.6,0.00013568,2]
[380935075,1755909041059,-423.85,0.00013568,2]
[380935076,1755909041068,-478.29799102,0.00013574,2]
[380935077,1755909041078,-609.0,0.00013574,2]
[380935078,1755909041087,-1780.11382389,0.00013598,2]
[380935079,1755909041096,-4730.15108397,0.00013598,2]
[380935080,1755909041106,-302.94,0.00013598,2]
[380935081,1755909041116,-432.98,0.00013598,2]
[380935082,1755909041125,-419.01,0.00013598,2]
[380935083,1755909041135,-305.05,0.00013598,2]
[380935084,1755909041144,-5000.0,0.00013598,2]
[380935085,1755909041153,-15235.4397,0.00013598,2]
[380935086,1755909041163,-707.9659,0.00013598,2]
[380935087,1755909041174,-77684.354,0.00013598,2]
[380935088,1755909041186,-1500.0,0.00013598,2]
[380935089,1755909041196,-1000.0,0.00013598,2]
[380935090,1755909041206,-1631.1797,0.00013598,2]
[380935092,1755909041217,-5798.19178837,0.00013602,2]
[380935094,1755909041227,-151.0,0.00013602,2]
[380935095,1755909041237,-151.0,0.00013602,2]
[380935096,1755909041246,-151.0,0.00013602,2]
[380935097,1755909041256,-275.765253,0.00013602,2]
[380935098,1755909041265,-275.765253,0.00013602,2]
[380935099,1755909041275,-275.765253,0.00013602,2]
[380935100,1755909041284,-151.0,0.00013602,2]
[380935101,1755909041294,-275.765253,0.00013602,2]
[380935102,1755909041303,-151.0,0.00013602,2]
[380935103,1755909041313,-160.378946,0.00013602,2]
[380935104,1755909041322,-720.265588,0.00013602,2]
[380935105,1755909041332,-151.0,0.00013602,2]
[380935106,1755909041341,-720.265588,0.00013602,2]
[380935107,1755909041351,-720.265588,0.00013602,2]
[380935108,1755909041361,-720.265588,0.00013602,2]
[380935109,1755909041371,-1619.279693,0.00013602,2]
[380935110,1755909041380,-1619.279693,0.00013602,2]
[380935111,1755909041390,-1619.279693,0.00013602,2]
[380935112,1755909041399,-1619.279693,0.00013602,2]
[380935113,1755909041409,-662.0,0.00013641,2]
[380935114,1755909041418,-5991.62628699,0.00013657,2]
[380935115,1755909041427,-151.0,0.00013657,2]
[380935116,1755909041437,-151.0,0.00013657,2]
[380935117,1755909041447,-151.0,0.00013657,2]
[380935118,1755909041456,-151.0,0.00013657,2]
[380935119,1755909041466,-151.0,0.00013657,2]
[380935120,1755909041475,-272.697624,0.00013657,2]
[380935121,1755909041484,-151.0,0.00013657,2]
[380935122,1755909041494,-259.056716,0.00013657,2]
[380935123,1755909041503,-151.0,0.00013657,2]
[380935124,1755909041513,-151.0,0.00013657,2]
[380935125,1755909041523,-151.0,0.00013657,2]
[380935126,1755909041532,-151.0,0.00013657,2]
[380935127,1755909041542,-151.0,0.00013657,2]
[380935128,1755909041551,-151.0,0.00013657,2]
[380935129,1755909041561,-151.0,0.00013657,2]
[380935130,1755909041571,-157.75188111,0.00013682,2]
[380935131,1755909041580,-1000.0,0.00013682,2]
[380935132,1755909041590,-1000.0,0.00013682,2]
[380935133,1755909041599,-981.07161553,0.00013682,2]
[380935134,1755909041609,-1000.0,0.00013682,2]
[380935135,1755909041619,-1000.0,0.00013682,2]
[380935136,1755909041629,-1000.0,0.00013682,2]
[380935137,1755909041639,-1000.0,0.00013682,2]
[380935138,1755909041648,-460.33833994,0.00013682,2]
[380935139,1755909041658,-923.76829835,0.00013682,2]
[380935140,1755909041667,-270.20149842,0.00013682,2]
[380935141,1755909041677,-500.0,0.00013682,2]
[380935142,1755909041687,-486.61122081,0.00013682,2]
[380935143,1755909041697,-155.26773336,0.00013682,2]
[380935144,1755909041706,-300.0,0.00013682,2]
[380935145,1755909041715,-300.0,0.00013682,2]
[380935146,1755909041725,-366.94242154,0.00013682,2]
[380935147,1755909041734,-1000.0,0.00013682,2]
[380935148,1755909041744,-1000.0,0.00013682,2]
[380935149,1755909041754,-1000.0,0.00013682,2]
[380935150,1755909041763,-1000.0,0.00013682,2]
[380935151,1755909041773,-1000.0,0.00013682,2]
[380935152,1755909041783,-1000.0,0.00013682,2]
[380935153,1755909041792,-441.59634678,0.00013682,2]
[380935154,1755909041802,-275.08568987,0.00013682,2]
[380935155,1755909041812,-300.0,0.00013682,2]
[380935156,1755909041821,-300.0,0.00013682,2]
[380935157,1755909041830,-300.0,0.00013682,2]
[380935158,1755909041840,-173.61895983,0.00013682,2]
[380935159,1755909041849,-151.0,0.00013682,2]
[380935160,1755909041859,-151.0,0.00013682,2]
[380935161,1755909041868,-151.0,0.00013682,2]
[380935162,1755909041877,-263.99876593,0.00013682,2]
[380935163,1755909041887,-500.0,0.00013682,2]
[380935164,1755909041897,-322.6107,0.00013682,2]
[380935165,1755909041906,-1044.73205054,0.00013697,2]
[380935166,1755909041916,-150.0,0.00013697,2]
[380935167,1755909041925,-150.0,0.00013697,2]
[380935168,1755909041935,-844.18806451,0.00013698,2]
[380935169,1755909041946,-400.0,0.00013698,2]
[380935170,1755909041956,-400.0,0.00013698,2]
[380935171,1755909041965,-400.0,0.00013698,2]
[380935172,1755909041975,-400.0,0.00013698,2]
[380935173,1755909041985,-400.0,0.00013698,2]
[380935174,1755909041994,-400.0,0.00013698,2]
[380935175,1755909042004,-400.0,0.00013698,2]
[380935176,1755909042013,-193.23948293,0.00013698,2]
[380935177,1755909042023,-400.0,0.00013698,2]
[380935178,1755909042033,-400.0,0.00013698,2]
[380935179,1755909042042,-497.39142696,0.00013698,2]
[380935180,1755909042052,-400.0,0.00013698,2]
[380935181,1755909042062,-537.94601362,0.00013698,2]
[380935182,1755909042071,-603.48,0.00013698,2]
[380935183,1755909042081,-612.02,0.00013698,2]
[380935184,1755909042091,-400.0,0.00013698,2]
[380935185,1755909042101,-400.0,0.00013698,2]
[380935186,1755909042113,-448.19,0.00013698,2]
[380935187,1755909042122,-400.0,0.00013698,2]
[380935188,1755909042132,-400.0,0.00013698,2]
[380935189,1755909042142,-400.0,0.00013698,2]
[380935190,1755909042151,-153.492172,0.00013698,2]
[380935191,1755909042160,-431.57,0.00013698,2]
[380935192,1755909042170,-400.0,0.00013698,2]
[380935193,1755909042181,-400.0,0.00013698,2]
[380935194,1755909042191,-400.0,0.00013698,2]
[380935195,1755909042200,-400.0,0.00013698,2]
[380935196,1755909042209,-434.66,0.00013698,2]
[380935197,1755909042219,-400.0,0.00013698,2]
[380935198,1755909042228,-649.59,0.00013698,2]
[380935199,1755909042238,-400.0,0.00013698,2]
[380935200,1755909042248,-400.0,0.00013698,2]
[380935201,1755909042261,-681.46,0.00013698,2]
[380935202,1755909042271,-400.0,0.00013698,2]
[380935203,1755909042281,-472.35,0.00013698,2]
[380935204,1755909042290,-400.0,0.00013698,2]
[380935205,1755909042300,-400.0,0.00013698,2]
[380935206,1755909042310,-400.0,0.00013698,2]
[380935207,1755909042319,-400.0,0.00013698,2]
[380935208,1755909042329,-400.0,0.00013698,2]
[380935209,1755909042338,-400.0,0.00013698,2]
[380935210,1755909042349,-409.04,0.00013698,2]
[380935211,1755909042359,-400.0,0.00013698,2]
[380935212,1755909042368,-235.795947,0.00013698,2]
[380935213,1755909042385,-546.13,0.00013698,2]
[380935214,1755909042399,-534.48,0.00013698,2]
[380935215,1755909042409,-635.82,0.00013698,2]
[380935216,1755909042419,-400.0,0.00013698,2]
[380935217,1755909042429,-400.0,0.00013698,2]
[380935218,1755909042438,-400.0,0.00013698,2]
[380935219,1755909042449,-476.99,0.00013698,2]
[380935220,1755909042458,-400.0,0.00013698,2]
[380935221,1755909042468,-400.0,0.00013698,2]
[380935222,1755909042478,-507.78,0.00013698,2]
[380935223,1755909042488,-400.0,0.00013698,2]
[380935224,1755909042498,-400.0,0.00013698,2]
[380935225,1755909042508,-400.0,0.00013698,2]
[380935226,1755909042518,-400.0,0.00013698,2]
[380935227,1755909042528,-400.0,0.00013698,2]
[380935228,1755909042539,-744.95,0.00013698,2]
[380935229,1755909042549,-400.0,0.00013698,2]
[380935230,1755909042559,-590.74,0.00013698,2]
[380935231,1755909042568,-400.0,0.00013698,2]
[380935232,1755909042578,-400.0,0.00013698,2]
[380935233,1755909042587,-400.0,0.00013698,2]
[380935234,1755909042596,-400.0,0.00013698,2]
[380935235,1755909042605,-575.25,0.00013698,2]
[380935236,1755909042615,-400.0,0.00013698,2]
[380935237,1755909042625,-990.54657,0.00013698,2]
[380935238,1755909042634,-400.0,0.00013698,2]
[380935239,1755909042644,-400.0,0.00013698,2]
[380935240,1755909042653,-400.0,0.00013698,2]
[380935241,1755909042662,-400.0,0.00013698,2]
[380935242,1755909042682,-400.0,0.00013698,2]
[380935243,1755909042703,-400.0,0.00013698,2]
[380935244,1755909042726,-400.0,0.00013698,2]
[380935245,1755909042744,-400.0,0.00013698,2]
[380935246,1755909042754,-400.0,0.00013698,2]
[380935247,1755909042763,-400.0,0.00013698,2]
[380935248,1755909042773,-400.0,0.00013698,2]
[380935249,1755909042783,-400.0,0.00013698,2]
[380935250,1755909042792,-400.0,0.00013698,2]
[380935251,1755909042801,-400.0,0.00013698,2]
[380935252,1755909042811,-400.0,0.00013698,2]
[380935253,1755909042820,-400.0,0.00013698,2]
[380935254,1755909042830,-400.0,0.00013698,2]
[380935255,1755909042839,-400.0,0.00013698,2]
[380935256,1755909042849,-400.0,0.00013698,2]
[380935257,1755909042858,-400.0,0.00013698,2]
[380935258,1755909042867,-400.0,0.00013698,2]
[380935259,1755909042877,-400.0,0.00013698,2]
[380935260,1755909042887,-400.0,0.00013698,2]
[380935261,1755909042896,-400.0,0.00013698,2]
[380935262,1755909042906,-477.98,0.00013698,2]
[380935263,1755909042915,-410.44,0.00013698,2]
[380935264,1755909042924,-400.0,0.00013698,2]
[380935265,1755909042934,-400.0,0.00013698,2]
[380935266,1755909042944,-400.0,0.00013698,2]
[380935267,1755909042955,-400.0,0.00013698,2]
[380935268,1755909042965,-692.3,0.00013698,2]
[380935269,1755909042974,-520.0,0.00013698,2]
[380935270,1755909042984,-600.48,0.00013698,2]
[380935271,1755909042994,-400.0,0.00013698,2]
[380935272,1755909043003,-400.0,0.00013698,2]
[380935273,1755909043012,-400.0,0.00013698,2]
[380935274,1755909043022,-402.6,0.00013698,2]
[380935275,1755909043032,-400.0,0.00013698,2]
[380935276,1755909043041,-400.0,0.00013698,2]
[380935277,1755909043050,-400.0,0.00013698,2]
[380935278,1755909043059,-400.0,0.00013698,2]
[380935279,1755909043068,-400.0,0.00013698,2]
[380935280,1755909043078,-400.0,0.00013698,2]
[380935281,1755909043087,-400.0,0.00013698,2]
[380935282,1755909043096,-400.0,0.00013698,2]
[380935283,1755909043106,-400.0,0.00013698,2]
[380935284,1755909043115,-400.0,0.00013698,2]
[380935285,1755909043124,-685.13,0.00013698,2]
[380935286,1755909043133,-400.0,0.00013698,2]
[380935287,1755909043144,-400.0,0.00013698,2]
[380935288,1755909043153,-400.0,0.00013698,2]
[380935290,1755909043163,-400.0,0.00013698,2]
[380935291,1755909043176,-400.0,0.00013698,2]
[380935292,1755909043185,-400.0,0.00013698,2]
[380935293,1755909043195,-400.0,0.00013698,2]
[380935294,1755909043206,-400.0,0.00013698,2]
[380935295,1755909043215,-400.0,0.00013698,2]
[380935296,1755909043225,-400.0,0.00013698,2]
[380935297,1755909043234,-400.0,0.00013698,2]
[380935298,1755909043244,-400.0,0.00013698,2]
[380935299,1755909043254,-400.0,0.00013698,2]
[380935300,1755909043264,-400.0,0.00013698,2]
[380935301,1755909043274,-400.0,0.00013698,2]
[380935302,1755909043283,-400.0,0.00013698,2]
[380935303,1755909043292,-580.21,0.00013698,2]
[380935304,1755909043302,-400.0,0.00013698,2]
[380935305,1755909043312,-410.70201784,0.00013698,2]
[380935306,1755909043322,-400.0,0.00013698,2]
[380935307,1755909043332,-628.41,0.00013698,2]
[380935308,1755909043342,-400.0,0.00013698,2]
[380935309,1755909043352,-400.0,0.00013698,2]
[380935310,1755909043362,-699.23,0.00013698,2]
[380935311,1755909043371,-400.0,0.00013698,2]
[380935312,1755909043381,-400.0,0.00013698,2]
[380935313,1755909043390,-400.0,0.00013698,2]
[380935314,1755909043400,-400.0,0.00013698,2]
[380935315,1755909043410,-400.0,0.00013698,2]
[380935316,1755909043420,-400.0,0.00013698,2]
[380935317,1755909043429,-400.0,0.00013698,2]
[380935318,1755909043439,-400.0,0.00013698,2]
[380935319,1755909043450,-400.0,0.00013698,2]
[380935320,1755909043460,-400.0,0.00013698,2]
[380935321,1755909043470,-740.51,0.00013698,2]
[380935322,1755909043734,-400.0,0.00013698,2]
[380935323,1755909043745,-400.0,0.00013698,2]
[380935324,1755909043755,-400.0,0.00013698,2]
[380935325,1755909043765,-440.08,0.00013698,2]
[380935326,1755909043775,-469.22,0.00013698,2]
[380935327,1755909043785,-1031.94,0.00013698,2]
[380935328,1755909043795,-400.0,0.00013698,2]
[380935329,1755909043805,-622.9,0.00013698,2]
[380935330,1755909043814,-400.0,0.00013698,2]
[380935331,1755909043824,-400.0,0.00013698,2]
[380935332,1755909043834,-400.0,0.00013698,2]
[380935333,1755909043844,-419.57,0.00013698,2]
[380935334,1755909043854,-400.0,0.00013698,2]
[380935335,1755909043863,-400.0,0.00013698,2]
[380935336,1755909043873,-400.0,0.00013698,2]
[380935337,1755909043883,-511.83,0.00013698,2]
[380935338,1755909043892,-400.0,0.00013698,2]
[380935339,1755909043901,-400.0,0.00013698,2]
[380935340,1755909043911,-620.5,0.00013698,2]
[380935341,1755909043920,-400.0,0.00013698,2]
[380935342,1755909043930,-400.0,0.00013698,2]
[380935343,1755909043939,-608.92,0.00013698,2]
[380935344,1755909043952,-400.0,0.00013698,2]
[380935346,1755909043962,-738.22,0.00013698,2]
[380935348,1755909043971,-699.72,0.00013698,2]
[380935350,1755909043981,-402.65,0.00013698,2]
[380935352,1755909043991,-400.0,0.00013698,2]
[380935354,1755909044001,-400.0,0.00013698,2]
[380935356,1755909044010,-400.0,0.00013698,2]
[380935357,1755909044020,-566.41,0.00013698,2]
[380935358,1755909044030,-400.0,0.00013698,2]
[380935359,1755909044040,-400.0,0.00013698,2]
[380935360,1755909044050,-400.0,0.00013698,2]
[380935361,1755909044060,-400.0,0.00013698,2]
[380935362,1755909044070,-400.0,0.00013698,2]
[380935363,1755909044080,-692.55,0.00013698,2]
[380935364,1755909044090,-400.0,0.00013698,2]
[380935365,1755909044099,-400.0,0.00013698,2]
[380935366,1755909044114,-400.0,0.00013698,2]
[380935367,1755909044124,-400.0,0.00013698,2]
[380935368,1755909044134,-400.0,0.00013698,2]
[380935369,1755909044144,-681.21,0.00013698,2]
[380935370,1755909044154,-400.0,0.00013698,2]
[380935371,1755909044164,-400.0,0.00013698,2]
[380935372,1755909044176,-461.28,0.00013698,2]
[380935373,1755909044189,-400.0,0.00013698,2]
[380935374,1755909044201,-400.0,0.00013698,2]
[380935375,1755909044210,-489.89,0.00013698,2]
[380935376,1755909044221,-400.0,0.00013698,2]
[380935377,1755909044231,-566.05,0.00013698,2]
[380935378,1755909044242,-400.0,0.00013698,2]
[380935379,1755909044253,-414.87,0.00013698,2]
[380935380,1755909044264,-400.0,0.00013698,2]
[380935381,1755909044274,-400.0,0.00013698,2]
[380935382,1755909044284,-400.0,0.00013698,2]
[380935383,1755909044294,-400.0,0.00013698,2]
[380935384,1755909044304,-400.0,0.00013698,2]
[380935385,1755909044314,-475.17,0.00013698,2]
[380935386,1755909044324,-177.327304,0.00013698,2]
[380935387,1755909044335,-400.0,0.00013698,2]
[380935388,1755909044345,-400.0,0.00013698,2]
[380935389,1755909044356,-400.0,0.00013698,2]
[380935390,1755909044366,-400.0,0.00013698,2]
[380935391,1755909044376,-411.77,0.00013698,2]
[380935392,1755909044386,-400.0,0.00013698,2]
[380935393,1755909044397,-500.9526299,0.00013698,2]
[380935394,1755909044407,-400.0,0.00013698,2]
[380935395,1755909044418,-400.0,0.00013698,2]
[380935396,1755909044428,-400.0,0.00013698,2]
[380935397,1755909044438,-400.0,0.00013698,2]
[380935398,1755909044447,-400.0,0.00013698,2]
[380935399,1755909044458,-400.0,0.00013698,2]
[380935400,1755909044468,-400.0,0.00013698,2]
[380935401,1755909044478,-367.21270657,0.00013698,2]
[380935402,1755909044488,-410.23,0.00013698,2]
[380935403,1755909044498,-400.0,0.00013698,2]
[380935404,1755909044509,-400.0,0.00013698,2]
[380935405,1755909044519,-400.0,0.00013698,2]
[380935406,1755909044529,-400.0,0.00013698,2]
[380935407,1755909044538,-400.0,0.00013698,2]
[380935408,1755909044548,-400.0,0.00013698,2]
[380935409,1755909044558,-639.2,0.00013698,2]
[380935410,1755909044568,-477.58,0.00013698,2]
[380935411,1755909044578,-400.0,0.00013698,2]
[380935412,1755909044587,-400.0,0.00013698,2]
[380935413,1755909044597,-972.5,0.00013698,2]
[380935414,1755909044607,-433.02706613,0.00013698,2]
[380935415,1755909044617,-414.05,0.00013698,2]
[380935416,1755909044627,-467.39,0.00013698,2]
[380935417,1755909044636,-400.0,0.00013698,2]
[380935418,1755909044647,-400.0,0.00013698,2]
[380935419,1755909044656,-400.0,0.00013698,2]
[380935420,1755909044667,-400.0,0.00013698,2]
[380935421,1755909044677,-667.14,0.00013698,2]
[380935422,1755909044686,-401.37922636,0.00013698,2]
[380935423,1755909044696,-400.0,0.00013698,2]
[380935424,1755909044707,-532.87,0.00013698,2]
[380935425,1755909044716,-400.0,0.00013698,2]
[380935426,1755909044726,-400.0,0.00013698,2]
[380935427,1755909044736,-400.0,0.00013698,2]
[380935428,1755909044746,-400.0,0.00013698,2]
[380935429,1755909044756,-400.0,0.00013698,2]
[380935430,1755909044773,-264.23998431,0.00013698,2]
[380935431,1755909044787,-442.87,0.00013698,2]
[380935432,1755909044799,-788.52,0.00013698,2]
[380935433,1755909044809,-400.0,0.00013698,2]
[380935434,1755909044819,-400.0,0.00013698,2]
[380935435,1755909044829,-400.0,0.00013698,2]
[380935436,1755909044839,-400.0,0.00013698,2]
[380935437,1755909044850,-413.86,0.00013698,2]
[380935438,1755909044860,-528.62,0.00013698,2]
[380935439,1755909044870,-400.0,0.00013698,2]
[380935440,1755909044880,-400.0,0.00013698,2]
[380935441,1755909044890,-400.0,0.00013698,2]
[380935442,1755909044899,-858.81,0.00013698,2]
[380935443,1755909044909,-400.0,0.00013698,2]
[380935444,1755909044919,-400.0,0.00013698,2]
[380935445,1755909044929,-400.0,0.00013698,2]
[380935446,1755909044940,-962.13,0.00013698,2]
[380935447,1755909044951,-400.0,0.00013698,2]
[380935448,1755909044961,-400.0,0.00013698,2]
[380935449,1755909044971,-640.39,0.00013698,2]
[380935450,1755909044981,-400.0,0.00013698,2]
[380935451,1755909044992,-400.0,0.00013698,2]
[380935452,1755909045001,-400.0,0.00013698,2]
[380935453,1755909045011,-400.0,0.00013698,2]
[380935454,1755909045021,-400.0,0.00013698,2]
[380935455,1755909045031,-400.0,0.00013698,2]
[380935456,1755909045041,-400.0,0.00013698,2]
[380935457,1755909045050,-495.39,0.00013698,2]
[380935458,1755909045060,-400.0,0.00013698,2]
[380935459,1755909045070,-431.15,0.00013698,2]
[380935460,1755909045080,-400.0,0.00013698,2]
[380935461,1755909045090,-400.0,0.00013698,2]
[380935462,1755909045100,-469.42,0.00013698,2]
[380935463,1755909045110,-412.84,0.00013698,2]
[380935464,1755909045120,-400.0,0.00013698,2]
[380935465,1755909045130,-400.0,0.00013698,2]
[380935466,1755909045139,-1194.0,0.00013698,2]
[380935467,1755909045149,-400.0,0.00013698,2]
[380935468,1755909045159,-400.0,0.00013698,2]
[380935469,1755909045169,-400.0,0.00013698,2]
[380935470,1755909045182,-400.0,0.00013698,2]
[380935471,1755909045192,-400.0,0.00013698,2]
[380935472,1755909045202,-400.0,0.00013698,2]
[380935473,1755909045211,-400.0,0.00013698,2]
[380935474,1755909045222,-719.77,0.00013698,2]
[380935475,1755909045232,-400.0,0.00013698,2]
[380935476,1755909045242,-400.0,0.00013698,2]
[380935477,1755909045252,-400.0,0.00013698,2]
[380935478,1755909045263,-571.55,0.00013698,2]
[380935479,1755909045274,-1072.22,0.00013698,2]
[380935480,1755909045284,-400.0,0.00013698,2]
[380935481,1755909045294,-400.0,0.00013698,2]
[380935482,1755909045304,-400.0,0.00013698,2]
[380935483,1755909045314,-400.0,0.00013698,2]
[380935484,1755909045324,-402.59,0.00013698,2]
[380935485,1755909045335,-511.73,0.00013698,2]
[380935486,1755909045345,-400.0,0.00013698,2]
[380935487,1755909045355,-400.0,0.00013698,2]
[380935488,1755909045364,-400.0,0.00013698,2]
[380935489,1755909045374,-839.94,0.00013698,2]
[380935490,1755909045383,-796.82,0.00013698,2]
[380935491,1755909045393,-697.65,0.00013698,2]
[380935492,1755909045403,-575.9,0.00013698,2]
[380935493,1755909045412,-400.0,0.00013698,2]
[380935494,1755909045422,-486.14,0.00013698,2]
[380935495,1755909045432,-499.82,0.00013698,2]
[380935496,1755909045441,-400.0,0.00013698,2]
[380935497,1755909045451,-400.0,0.00013698,2]
[380935498,1755909045461,-400.0,0.00013698,2]
[380935499,1755909045471,-400.0,0.00013698,2]
[380935500,1755909045481,-400.0,0.00013698,2]
[380935501,1755909045492,-400.0,0.00013698,2]
[380935502,1755909045503,-400.0,0.00013698,2]
[380935503,1755909045513,-400.0,0.00013698,2]
[380935504,1755909045523,-400.0,0.00013698,2]
[380935505,1755909045534,-400.0,0.00013698,2]
[380935506,1755909045544,-400.0,0.00013698,2]
[380935507,1755909045554,-400.0,0.00013698,2]
[380935508,1755909045564,-400.0,0.00013698,2]
[380935509,1755909045574,-814.32,0.00013698,2]
[380935510,1755909045584,-900.25,0.00013698,2]
[380935511,1755909045594,-400.0,0.00013698,2]